bitfinex-derivatives/quotes_BTCF0:USTF0_20250406
["timestamp","ask_amount","ask_price","bid_price","bid_amount"]
[1743909522678,0.14958648,83384.0,83383.0,0.06578]
[1743909523174,0.15058648,83384.0,83383.0,0.1487618]
[1743909523375,0.15158648,83384.0,83383.0,0.1477618]
[1743909524175,0.10082648,83384.0,83383.0,0.1477618]
[1743909524679,0.15158648,83384.0,83383.0,0.1477618]
[1743909524879,0.10082648,83384.0,83383.0,0.1477618]
[1743909525077,0.15158648,83384.0,83383.0,0.1477618]
[1743909525584,0.15058648,83384.0,83383.0,0.1477618]
[1743909526481,0.15158648,83384.0,83383.0,0.1477618]
[1743909531285,0.15158648,83384.0,83383.0,0.5085618]
[1743909531787,0.15158648,83384.0,83383.0,0.52535386]
[1743909532487,0.15158648,83384.0,83383.0,0.16455386]
[1743909532789,0.15158648,83384.0,83383.0,0.52535386]
[1743909533980,0.15158648,83384.0,83383.0,0.16455386]
[1743909534175,0.15158648,83384.0,83383.0,0.52535386]
[1743909535291,0.15158648,83384.0,83383.0,0.76535386]
[1743909535480,0.15158648,83384.0,83383.0,0.52535386]
[1743909535886,0.15158648,83384.0,83383.0,0.78535386]
[1743909536085,0.10082648,83384.0,83383.0,0.78535386]
[1743909536384,0.15094648,83384.0,83383.0,0.78535386]
[1743909536591,0.15154649,83384.0,83383.0,0.78538804]
[1743909537490,0.15154649,83384.0,83383.0,0.78538443]
[1743909538485,0.15154649,83384.0,83383.0,0.52538443]
[1743909540489,0.15154649,83384.0,83383.0,0.55598443]
[1743909542286,0.15154649,83384.0,83383.0,0.55587545]
[1743909542287,0.01680569,83384.0,83383.0,0.55587545]
[1743909542481,0.01620568,83384.0,83383.0,0.55587545]
[1743909542794,0.06696568,83384.0,83383.0,0.55587545]
[1743909542987,0.15154649,83384.0,83383.0,0.81587545]
[1743909543183,0.06656569,83384.0,83383.0,0.55587545]
[1743909543387,0.06656569,83384.0,83383.0,0.80687545]
[1743909543588,0.06656569,83384.0,83383.0,0.55687545]
[1743909543787,0.14954649,83384.0,83383.0,0.55687545]
[1743909544090,0.14954649,83384.0,83383.0,0.82692509]
[1743909544890,0.14954649,83384.0,83383.0,0.55692509]
[1743909545090,0.14954649,83384.0,83383.0,0.55691493]
[1743909545494,0.14954649,83384.0,83383.0,0.82691493]
[1743909545897,0.14954649,83384.0,83383.0,0.5569297]
[1743909546492,0.13534081,83384.0,83383.0,0.5569297]
[1743909546785,0.00060001,83384.0,83383.0,0.8169297]
[1743909546987,0.05076,83384.0,83383.0,0.5569297]
[1743909547793,0.1347408,83384.0,83383.0,0.5569297]
[1743909548099,0.1354208,83384.0,83383.0,0.5569297]
[1743909548389,0.1354208,83384.0,83383.0,0.8169297]
[1743909548795,0.1354208,83384.0,83383.0,0.5569297]
[1743909549994,0.05144,83384.0,83383.0,0.8069297]
[1743909550194,0.05076,83384.0,83383.0,0.8069297]
[1743909550395,0.1347408,83384.0,83383.0,0.8069297]
[1743909550596,0.13534081,83384.0,83383.0,0.8069297]
[1743909550894,0.13534081,83384.0,83383.0,0.5569297]
[1743909551395,0.08458081,83384.0,83383.0,0.5569297]
[1743909551801,0.08458081,83384.0,83383.0,0.5559297]
[1743909551990,0.08458081,83384.0,83383.0,0.8359297]
[1743909552197,0.00060001,83384.0,83383.0,0.8359297]
[1743909552399,0.1347399,83385.0,83384.0,0.0839808]
[1743909552591,0.13533991,83385.0,83384.0,0.3613487]
[1743909552791,0.05136001,83385.0,83384.0,0.4234487]
[1743909552997,0.1347398,83385.0,83384.0,0.42349014]
[1743909553200,0.13533981,83385.0,83384.0,0.42349014]
[1743909553602,0.1354198,83385.0,83384.0,0.42349014]
[1743909555108,0.1354198,83385.0,83384.0,0.42346826]
[1743909557113,0.24288976,83385.0,83384.0,0.42346826]
[1743909557413,0.15890996,83385.0,83384.0,0.42346826]
[1743909558712,0.24288976,83385.0,83384.0,0.4066808]
[1743909558916,0.24288976,83385.0,83384.0,0.42345422]
[1743909559215,0.15890996,83385.0,83384.0,0.42345422]
[1743909560602,0.15890996,83385.0,83384.0,0.42345454]
[1743909561220,0.05144,83385.0,83384.0,0.4505464]
[1743909561418,0.1347398,83385.0,83384.0,0.4505464]
[1743909561618,0.13533981,83385.0,83384.0,0.4505464]
[1743909562413,0.13533981,83385.0,83384.0,0.6905464]
[1743909562617,0.16813981,83385.0,83384.0,0.4505464]
[1743909562817,0.16813981,83385.0,83384.0,0.7305464]
[1743909563017,0.16813981,83385.0,83384.0,1.0913464]
[1743909563224,0.16813981,83385.0,83384.0,0.8113464]
[1743909563425,0.16813981,83385.0,83384.0,1.0713464]
[1743909564919,0.08416001,83385.0,83384.0,1.0713464]
[1743909567919,0.08416001,83385.0,83384.0,1.05457266]
[1743909568125,0.08416001,83385.0,83384.0,1.07133158]
[1743909569426,0.08416001,83385.0,83384.0,0.81133158]
[1743909569613,0.08416001,83385.0,83384.0,1.08133158]
[1743909569817,0.08416001,83385.0,83384.0,1.08132163]
[1743909570525,0.08416001,83385.0,83384.0,1.28042163]
[1743909570827,0.08416001,83385.0,83384.0,1.08132163]
[1743909571422,0.08416001,83385.0,83384.0,1.08131783]
[1743909572129,0.16813981,83385.0,83384.0,1.08131783]
[1743909572427,0.16813981,83385.0,83384.0,1.09131783]
[1743909573625,0.16813981,83385.0,83384.0,1.09131641]
[1743909574128,0.11737981,83385.0,83384.0,1.09131641]
[1743909574629,0.11737981,83385.0,83384.0,0.81131641]
[1743909576525,0.22484977,83385.0,83384.0,0.81131641]
[1743909577033,0.22484977,83385.0,83384.0,1.04131641]
[1743909577224,0.22484977,83385.0,83384.0,0.8113175]
[1743909578533,0.14086997,83385.0,83384.0,0.8113175]
[1743909578722,0.14086997,83385.0,83384.0,1.0913175]
[1743909579127,0.14086997,83385.0,83384.0,0.8113175]
[1743909579734,0.03340001,83385.0,83384.0,0.52422564]
[1743909582036,0.03340001,83385.0,83384.0,0.52522564]
[1743909582936,0.03340001,83385.0,83384.0,0.52422564]
[1743909583437,0.14086997,83385.0,83384.0,0.52422564]
[1743909584230,0.22484977,83385.0,83384.0,0.52422564]
[1743909585537,0.27556977,83385.0,83384.0,0.52422564]
[1743909586438,0.27556977,83385.0,83384.0,0.52425105]
[1743909587939,0.19158997,83385.0,83384.0,0.52425105]
[1743909588939,0.22328997,83385.0,83384.0,0.52425105]
[1743909589437,0.30726977,83385.0,83384.0,0.52425105]
[1743909590040,0.30726977,83385.0,83384.0,0.5074808]
[1743909590246,0.30726977,83385.0,83384.0,0.52425438]
[1743909590439,0.22328997,83385.0,83384.0,0.52425438]
[1743909593740,0.30726977,83385.0,83384.0,0.52427586]
[1743909594545,0.27556977,83385.0,83384.0,0.52427586]
[1743909595046,0.16809981,83385.0,83384.0,0.52427586]
[1743909595543,0.11737981,83385.0,83384.0,0.52427586]
[1743909595745,0.16809981,83385.0,83384.0,0.52427586]
[1743909596837,0.16809981,83385.0,83384.0,0.52420538]
[1743909601052,0.16809981,83385.0,83384.0,0.72330538]
[1743909601254,0.16809981,83385.0,83384.0,0.52420538]
[1743909602455,0.16809981,83385.0,83384.0,0.52419841]
[1743909603440,0.08412001,83385.0,83384.0,0.52419841]
[1743909603643,0.08412001,83385.0,83384.0,0.75419841]
[1743909603843,0.08352,83385.0,83384.0,0.52419841]
[1743909604039,0.08412001,83385.0,83384.0,0.52419841]
[1743909604359,0.08412001,83385.0,83384.0,0.52414844]
[1743909604849,0.05132001,83385.0,83384.0,1.05212382]
[1743909605061,0.05072,83385.0,83384.0,1.05212382]
[1743909605355,0.05072,83385.0,83384.0,1.07212382]
[1743909605758,0.05132001,83385.0,83384.0,1.07212382]
[1743909606159,0.05132001,83385.0,83384.0,1.07214928]
[1743909607456,0.05132001,83385.0,83384.0,0.81214928]
[1743909608554,0.15928306,83385.0,83384.0,1.07214928]
[1743909609753,0.15928306,83385.0,83384.0,1.05545618]
[1743909610056,0.15928306,83385.0,83384.0,1.07215614]
[1743909611651,0.15928306,83385.0,83384.0,1.07215589]
[1743909611859,0.15928306,83385.0,83384.0,0.78418051]
[1743909615248,0.15868305,83385.0,83384.0,0.78418051]
[1743909615855,0.05072,83385.0,83384.0,0.78418051]
[1743909620460,0.05132001,83385.0,83384.0,0.78418051]
[1743909621662,0.05132001,83385.0,83384.0,0.78429]
[1743909622365,0.05132001,83385.0,83384.0,0.52429]
[1743909622758,0.05132001,83385.0,83384.0,0.79429]
[1743909623465,0.05132001,83385.0,83384.0,0.52429]
[1743909623659,0.05132001,83385.0,83384.0,0.75429]
[1743909623865,0.05132001,83385.0,83384.0,0.52429]
[1743909624066,0.05132001,83385.0,83384.0,0.78429]
[1743909624367,0.05132001,83385.0,83384.0,0.52429]
[1743909624766,0.05132001,83385.0,83384.0,0.81429]
[1743909625366,0.05132001,83385.0,83384.0,0.52429]
[1743909625561,0.05132001,83385.0,83384.0,0.78429]
[1743909625963,0.05132001,83385.0,83384.0,0.52429]
[1743909626163,0.05132001,83385.0,83384.0,0.76429]
[1743909626364,0.05132001,83385.0,83384.0,0.79422809]
[1743909626560,0.05132001,83385.0,83384.0,0.52422809]
[1743909626765,0.05132001,83385.0,83384.0,0.77422809]
[1743909627155,0.05132001,83385.0,83384.0,0.52422809]
[1743909627670,0.05132001,83385.0,83384.0,0.75422809]
[1743909630170,0.05132001,83385.0,83384.0,0.75428382]
[1743909631672,0.15928306,83385.0,83384.0,0.52428382]
[1743909631971,0.15928306,83385.0,83384.0,0.52427827]
[1743909632271,0.15928306,83385.0,83384.0,0.77427827]
[1743909632669,0.15928306,83385.0,83384.0,0.80427827]
[1743909632864,0.15928306,83385.0,83384.0,0.52427827]
[1743909633472,0.15928306,83385.0,83384.0,0.77427827]
[1743909633660,0.15928306,83385.0,83384.0,0.77428873]
[1743909633857,0.15928306,83385.0,83384.0,0.81428873]
[1743909634472,0.15928306,83385.0,83384.0,0.52428873]
[1743909634769,0.15928306,83385.0,83384.0,0.75428873]
[1743909635075,0.15928306,83385.0,83384.0,0.78428877]
[1743909636064,0.15928306,83385.0,83384.0,0.42348877]
[1743909636271,0.15928306,83385.0,83384.0,0.52428877]
[1743909636574,0.15928306,83385.0,83384.0,0.80428877]
[1743909636870,0.05132001,83385.0,83384.0,0.80428877]
[1743909637474,0.05132001,83385.0,83384.0,0.80429057]
[1743909637673,0.08302001,83385.0,83384.0,0.80429057]
[1743909639978,0.05132001,83385.0,83384.0,0.80429057]
[1743909641676,0.05132001,83385.0,83384.0,0.52429057]
[1743909641978,0.08162001,83385.0,83384.0,0.52429057]
[1743909642180,0.08162001,83385.0,83384.0,0.77429057]
[1743909642470,0.08162001,83385.0,83384.0,0.52429057]
[1743909642677,0.08162001,83385.0,83384.0,0.80428946]
[1743909644380,0.08162001,83385.0,83384.0,0.52428946]
[1743909644777,0.08162001,83385.0,83384.0,0.44348946]
[1743909644980,0.08162001,83385.0,83384.0,0.80428946]
[1743909646581,0.08162001,83385.0,83384.0,0.80428296]
[1743909647384,0.08162001,83385.0,83384.0,0.44348296]
[1743909647585,0.08162001,83385.0,83384.0,0.52428296]
[1743909648081,0.19599981,83385.0,83384.0,0.37820216]
[1743909649983,0.19599981,83385.0,83384.0,0.46218296]
[1743909652182,0.19599981,83385.0,83384.0,0.10137281]
[1743909660486,0.19599981,83385.0,83384.0,0.01739201]
[1743909660683,0.19599981,83385.0,83384.0,0.10137281]
[1743909661790,0.19599981,83385.0,83384.0,0.16347281]
[1743909662793,0.19599981,83385.0,83384.0,0.13177281]
[1743909663185,0.19599981,83385.0,83384.0,0.16347281]
[1743909666197,0.19599981,83385.0,83384.0,0.16342363]
[1743909668900,0.19599981,83385.0,83384.0,0.19512363]
[1743909669093,0.14527981,83385.0,83384.0,0.19512363]
[1743909669299,0.19599981,83385.0,83384.0,0.19512363]
[1743909669596,0.14527981,83385.0,83384.0,0.19512363]
[1743909669791,0.16559981,83385.0,83384.0,0.19512375]
[1743909673401,0.18359982,83385.0,83384.0,0.19529693]
[1743909673597,0.16559981,83385.0,83384.0,0.19529693]
[1743909675104,0.18359982,83385.0,83384.0,0.19529693]
[1743909675305,0.16559981,83385.0,83384.0,0.19529693]
[1743909675503,0.18359982,83385.0,83384.0,0.19529693]
[1743909676105,0.16559981,83385.0,83384.0,0.19529693]
[1743909676305,0.15329982,83385.0,83384.0,0.11131613]
[1743909676603,0.0839818,83383.0,83382.0,0.18687303]
[1743909676903,0.4455418,83383.0,83382.0,0.18747303]
[1743909677104,0.5057418,83383.0,83382.0,0.18747303]
[1743909678201,0.5097418,83383.0,83382.0,0.18747303]
[1743909679207,0.5127418,83383.0,83382.0,0.18747303]
[1743909679710,0.5097418,83383.0,83382.0,0.18747303]
[1743909679899,0.5127418,83383.0,83382.0,0.18747303]
[1743909680305,0.1489418,83383.0,83382.0,0.18747303]
[1743909680498,0.5127418,83383.0,83382.0,0.18747303]
[1743909681204,0.5137418,83383.0,83382.0,0.18747303]
[1743909681600,0.62279867,83383.0,83382.0,0.0006]
[1743909681806,0.62279867,83383.0,83382.0,0.0646]
[1743909682001,0.57207867,83383.0,83382.0,0.0646]
[1743909682206,0.62279867,83383.0,83382.0,0.0646]
[1743909685513,0.5644618,83383.0,83382.0,0.0646]
[1743909688514,0.5644618,83383.0,83382.0,0.08144205]
[1743909689911,0.5644618,83383.0,83382.0,0.04914205]
[1743909690212,0.0839838,83381.0,83380.0,0.00884697]
[1743909690514,0.0847438,83381.0,83379.0,0.0315]
[1743909690714,0.065,83380.0,83363.0,8e-05]
[1743909690913,0.042,83365.0,83363.0,0.00942393]
[1743909691111,0.167721,83364.0,83363.0,0.0006]
[1743909691506,0.084005,83360.0,83359.0,0.00018987]
[1743909693412,0.084005,83360.0,83359.0,0.03328987]
[1743909693616,0.084005,83360.0,83359.0,0.03528987]
[1743909693910,0.084005,83360.0,83359.0,0.06538987]
[1743909695218,0.084005,83360.0,83359.0,0.07453555]
[1743909696316,0.084845,83360.0,83359.0,0.07521555]
[1743909697812,0.084845,83360.0,83359.0,0.07513555]
[1743909699121,0.084845,83360.0,83359.0,0.07502568]
[1743909701020,0.084845,83360.0,83359.0,0.31502568]
[1743909701226,0.084845,83360.0,83359.0,0.07502568]
[1743909702224,0.135565,83360.0,83359.0,0.07502568]
[1743909706229,0.167365,83360.0,83359.0,0.07502568]
[1743909710731,0.167365,83360.0,83359.0,0.10812568]
[1743909712930,0.27494814,83360.0,83359.0,0.10812568]
[1743909716536,0.167365,83360.0,83359.0,0.10812568]
[1743909720337,0.167365,83360.0,83359.0,0.19213168]
[1743909722542,0.116645,83360.0,83359.0,0.19213168]
[1743909722737,0.167365,83360.0,83359.0,0.19213168]
[1743909723841,0.167365,83360.0,83359.0,0.10812568]
[1743909726333,0.167365,83360.0,83359.0,0.19213168]
[1743909727042,0.167525,83360.0,83359.0,0.19013168]
[1743909727341,0.168525,83360.0,83359.0,0.19013168]
[1743909730946,0.169485,83360.0,83359.0,0.19013168]
[1743909731137,0.168485,83360.0,83359.0,0.19013168]
[1743909731337,0.169485,83360.0,83359.0,0.19013168]
[1743909736463,0.169485,83360.0,83359.0,0.43013168]
[1743909739261,0.169485,83360.0,83359.0,0.34612568]
[1743909739857,0.169485,83360.0,83359.0,0.10612568]
[1743909742960,0.169485,83360.0,83359.0,0.36612568]
[1743909744867,0.169405,83360.0,83359.0,0.19013168]
[1743909745067,0.169405,83360.0,83359.0,0.10612568]
[1743909753166,0.118645,83360.0,83359.0,0.10612568]
[1743909753368,0.169365,83360.0,83359.0,0.10612568]
[1743909757579,0.199865,83360.0,83359.0,0.10612568]
[1743909757795,0.199865,83360.0,83359.0,0.10544568]
[1743909758684,0.084009,83356.0,83355.0,0.00059984]
[1743909758885,0.444809,83356.0,83355.0,0.00059984]
[1743909759578,0.509309,83356.0,83355.0,0.00059984]
[1743909760383,0.509309,83356.0,83355.0,0.00968915]
[1743909760582,0.510109,83356.0,83355.0,0.01032915]
[1743909762778,0.68961162,83356.0,83355.0,0.01032915]
[1743909762979,0.68961162,83356.0,83355.0,0.00968915]
[1743909766588,0.510109,83356.0,83355.0,0.00968915]
[1743909767090,0.560829,83356.0,83355.0,0.24968915]
[1743909767292,0.560829,83356.0,83355.0,0.07318915]
[1743909767490,0.560829,83356.0,83355.0,0.07258915]
[1743909772997,0.57882901,83356.0,83355.0,0.07258915]
[1743909773201,0.560829,83356.0,83355.0,0.07258915]
[1743909773497,0.57882901,83356.0,83355.0,0.07258915]
[1743909782405,0.54662901,83356.0,83355.0,0.07318915]
[1743909782795,0.49590901,83356.0,83355.0,0.07318915]
[1743909782996,0.54662901,83356.0,83355.0,0.07318915]
[1743909786596,0.18582901,83356.0,83355.0,0.07318915]
[1743909790107,0.18582901,83356.0,83355.0,0.07258915]
[1743909791200,0.24418188,83356.0,83355.0,0.07258915]
[1743909792902,0.22618187,83356.0,83355.0,0.07258915]
[1743909793412,0.24418188,83356.0,83355.0,0.07258915]
[1743909798398,0.24418188,83356.0,83355.0,0.07318915]
[1743909798603,0.19346188,83356.0,83355.0,0.07318915]
[1743909798807,0.24418188,83356.0,83355.0,0.07318915]
[1743909799214,0.16116188,83356.0,83355.0,0.38719915]
[1743909799409,0.19388187,83356.0,83355.0,0.38719915]
[1743909799605,0.19384187,83356.0,83355.0,0.38719915]
[1743909799805,0.19384187,83356.0,83355.0,0.15719915]
[1743909800209,0.19388187,83356.0,83355.0,0.15719915]
[1743909800518,0.19388187,83356.0,83355.0,0.42719915]
[1743909800907,0.14312187,83356.0,83355.0,0.42719915]
[1743909801208,0.19384187,83356.0,83355.0,0.42719915]
[1743909803223,0.19384187,83356.0,83355.0,0.15719915]
[1743909803420,0.19384187,83356.0,83355.0,0.41719915]
[1743909803815,0.19384187,83356.0,83355.0,0.15719915]
[1743909804015,0.135489,83356.0,83355.0,0.15719915]
[1743909804205,0.135489,83356.0,83355.0,0.07318915]
[1743909804410,0.135489,83356.0,83355.0,0.15719915]
[1743909804613,0.166889,83356.0,83355.0,0.15719915]
[1743909805517,0.135489,83356.0,83355.0,0.15719915]
[1743909805718,0.084769,83356.0,83355.0,0.41719915]
[1743909805908,0.135489,83356.0,83355.0,0.42719915]
[1743909806822,0.084769,83356.0,83355.0,0.42719915]
[1743909807513,0.135529,83356.0,83355.0,0.42719915]
[1743909808920,0.135529,83356.0,83355.0,0.15719915]
[1743909809111,0.135529,83356.0,83355.0,0.41719915]
[1743909810116,0.135529,83356.0,83355.0,0.40719915]
[1743909811121,0.084769,83356.0,83355.0,0.40719915]
[1743909811323,0.135489,83356.0,83355.0,0.40719915]
[1743909822233,0.168589,83356.0,83355.0,0.40719915]
[1743909827829,0.31235823,83356.0,83355.0,0.40719915]
[1743909829034,0.31235823,83356.0,83355.0,0.15719915]
[1743909829234,0.31235823,83356.0,83355.0,0.43719915]
[1743909829534,0.31235823,83356.0,83355.0,0.15719915]
[1743909830125,0.31235823,83356.0,83355.0,0.43719915]
[1743909830327,0.31235823,83356.0,83355.0,0.15719915]
[1743909830533,0.31235823,83356.0,83355.0,0.07318915]
[1743909831636,0.31235823,83356.0,83355.0,0.15719915]
[1743909832133,0.168589,83356.0,83355.0,0.15719915]
[1743909833334,0.168589,83356.0,83355.0,0.40719915]
[1743909834125,0.117869,83356.0,83355.0,0.15719915]
[1743909834331,0.168589,83356.0,83355.0,0.15719915]
[1743909834929,0.168589,83356.0,83355.0,0.43719915]
[1743909835240,0.117869,83356.0,83355.0,0.43719915]
[1743909835538,0.167829,83356.0,83355.0,0.43719915]
[1743909835738,0.167829,83356.0,83355.0,0.15719915]
[1743909835939,0.168589,83356.0,83355.0,0.15719915]
[1743909837539,0.168589,83356.0,83355.0,0.39719915]
[1743909838341,0.168589,83356.0,83355.0,0.15719915]
[1743909838538,0.08458,83356.0,83355.0,0.15719915]
[1743909838732,0.167829,83356.0,83355.0,0.42719915]
[1743909839845,0.167829,83356.0,83355.0,0.41719915]
[1743909840042,0.167829,83356.0,83355.0,0.15719915]
[1743909840238,0.168589,83356.0,83355.0,0.42719915]
[1743909840942,0.168589,83356.0,83355.0,0.15719915]
[1743909841142,0.168589,83356.0,83355.0,0.43719915]
[1743909841743,0.168589,83356.0,83355.0,0.15719915]
[1743909841942,0.168589,83356.0,83355.0,0.40719915]
[1743909845243,0.168589,83356.0,83355.0,0.15719915]
[1743909845449,0.168589,83356.0,83355.0,0.43719915]
[1743909846246,0.117869,83356.0,83355.0,0.43719915]
[1743909846452,0.168589,83356.0,83355.0,0.43719915]
[1743909847048,0.168589,83356.0,83355.0,0.15719915]
[1743909847343,0.168589,83356.0,83355.0,0.42719915]
[1743909847541,0.168589,83356.0,83355.0,0.38719915]
[1743909847741,0.168589,83356.0,83355.0,0.07318915]
[1743909848252,0.168589,83356.0,83355.0,0.37328208]
[1743909848450,0.168669,83356.0,83355.0,0.37328208]
[1743909850050,0.168669,83356.0,83355.0,0.63328208]
[1743909850251,0.167829,83356.0,83355.0,0.63328208]
[1743909850451,0.167829,83356.0,83355.0,0.37328208]
[1743909850646,0.167829,83356.0,83355.0,0.64328208]
[1743909851052,0.167829,83356.0,83355.0,0.37328208]
[1743909851252,0.167829,83356.0,83355.0,0.63328208]
[1743909851551,0.167829,83356.0,83355.0,0.15719915]
[1743909851851,0.167829,83356.0,83355.0,0.41719915]
[1743909855348,0.168629,83356.0,83355.0,0.41719915]
[1743909856049,0.168629,83356.0,83355.0,0.15719915]
[1743909856247,0.168629,83356.0,83355.0,0.39719915]
[1743909856850,0.168629,83356.0,83355.0,0.15719915]
[1743909858856,0.168629,83356.0,83355.0,0.43719915]
[1743909859057,0.117909,83356.0,83355.0,0.43719915]
[1743909859256,0.168629,83356.0,83355.0,0.43719915]
[1743909859762,0.168629,83356.0,83355.0,0.15719915]
[1743909860661,0.168629,83356.0,83355.0,0.42719915]
[1743909861161,0.168629,83356.0,83355.0,0.15719915]
[1743909861964,0.168629,83356.0,83355.0,0.43719915]
[1743909862559,0.168629,83356.0,83355.0,0.15719915]
[1743909868671,0.117909,83356.0,83355.0,0.15719915]
[1743909868860,0.168629,83356.0,83355.0,0.15719915]
[1743909869469,0.168629,83356.0,83355.0,0.07318915]
[1743909869964,0.198829,83356.0,83355.0,0.07318915]
[1743909871775,0.198829,83356.0,83355.0,0.01028915]
[1743909873780,0.198829,83356.0,83355.0,0.07298915]
[1743909873978,0.198829,83356.0,83355.0,0.35298915]
[1743909874877,0.168629,83356.0,83355.0,0.35298915]
[1743909875373,0.168629,83356.0,83355.0,0.43699915]
[1743909879374,0.168629,83356.0,83355.0,0.15699915]
[1743909880381,0.168629,83356.0,83355.0,0.42699915]
[1743909880680,0.168629,83356.0,83355.0,0.15699915]
[1743909880883,0.168629,83356.0,83355.0,0.39699915]
[1743909881582,0.168629,83356.0,83355.0,0.15699915]
[1743909881773,0.168629,83356.0,83355.0,0.40699915]
[1743909881975,0.168629,83356.0,83355.0,0.39699915]
[1743909882673,0.168629,83356.0,83355.0,0.07298915]
[1743909883275,0.199229,83356.0,83355.0,0.07298915]
[1743909897587,0.199229,83356.0,83355.0,0.01028915]
[1743909901399,0.560029,83356.0,83355.0,0.01028915]
[1743909903295,0.0840131,83352.0,83351.0,0.00017985]
[1743909903493,0.0850131,83352.0,83351.0,0.00077985]
[1743909904196,0.1492131,83352.0,83351.0,0.00077985]
[1743909904698,0.1492131,83352.0,83351.0,0.00983529]
[1743909904885,0.1492131,83352.0,83351.0,0.00077985]
[1743909905291,0.1522131,83352.0,83351.0,0.00077985]
[1743909906197,0.1552131,83352.0,83351.0,0.00077985]
[1743909907694,0.1522131,83352.0,83351.0,0.00077985]
[1743909907895,0.1552131,83352.0,83351.0,0.00077985]
[1743909908800,0.21356645,83352.0,83351.0,0.00077985]
[1743909908997,0.21356645,83352.0,83351.0,0.00017985]
[1743909909804,0.57436645,83352.0,83351.0,0.00017985]
[1743909912203,0.5160131,83352.0,83351.0,0.00017985]
[1743909912906,0.53401311,83352.0,83351.0,0.00017985]
[1743909913203,0.5160131,83352.0,83351.0,0.00017985]
[1743909913504,0.53401311,83352.0,83351.0,0.00017985]
[1743909913702,0.53401311,83352.0,83351.0,0.00897284]
[1743909914896,0.53401311,83352.0,83336.0,0.36070015]
[1743909914897,0.45000001,83352.0,83336.0,0.36070015]
[1743909915098,0.0840282,83337.0,83336.0,0.36070015]
[1743909915298,0.1351882,83337.0,83336.0,0.36070015]
[1743909916098,0.1351882,83337.0,83336.0,0.36170015]
[1743909916495,0.1361082,83337.0,83336.0,0.36270015]
[1743909916700,0.14899646,83337.0,83336.0,0.36270015]
[1743909917802,0.14899646,83337.0,83336.0,0.36170015]
[1743909918116,0.14899646,83337.0,83336.0,0.36270015]
[1743909919701,0.14899646,83337.0,83336.0,0.3716526]
[1743909920499,0.14899646,83337.0,83336.0,0.4336526]
[1743909923907,0.14899646,83337.0,83336.0,0.07295245]
[1743909924612,0.14899646,83337.0,83336.0,0.34295245]
[1743909924804,0.14899646,83337.0,83336.0,0.15698165]
[1743909925512,0.14899646,83337.0,83336.0,0.07295245]
[1743909926513,0.14899646,83337.0,83336.0,0.33295245]
[1743909926713,0.14899646,83337.0,83336.0,0.07295245]
[1743909928109,0.17929646,83337.0,83336.0,0.07295245]
[1743909932208,0.21039646,83337.0,83336.0,0.07295245]
[1743909933217,0.22839647,83337.0,83336.0,0.07295245]
[1743909934119,0.19729647,83337.0,83336.0,0.07295245]
[1743909934320,0.14613647,83337.0,83336.0,0.07295245]
[1743909934615,0.19753647,83337.0,83336.0,0.07295245]
[1743909934813,0.14613647,83337.0,83336.0,0.07295245]
[1743909935020,0.19757647,83337.0,83336.0,0.07295245]
[1743909952836,0.17957646,83337.0,83336.0,0.07295245]
[1743909953032,0.19757647,83337.0,83336.0,0.07295245]
[1743909953232,0.17957646,83337.0,83336.0,0.07295245]
[1743909953426,0.19757647,83337.0,83336.0,0.07295245]
[1743909964450,0.25594431,83337.0,83336.0,0.07295245]
[1743909966560,0.20450431,83337.0,83336.0,0.07295245]
[1743909966760,0.25594431,83337.0,83336.0,0.07295245]
[1743909969860,0.28874431,83337.0,83336.0,0.07295245]
[1743909971468,0.23730431,83337.0,83336.0,0.07295245]
[1743909971662,0.28866431,83337.0,83336.0,0.07295245]
[1743909972868,0.2706643,83337.0,83336.0,0.07295245]
[1743909973069,0.28866431,83337.0,83336.0,0.07295245]
[1743909973260,0.2706643,83337.0,83336.0,0.07295245]
[1743909973460,0.28866431,83337.0,83336.0,0.07295245]
[1743909973768,0.25586431,83337.0,83336.0,0.07295245]
[1743909974067,0.20450431,83337.0,83336.0,0.07295245]
[1743909974262,0.25586431,83337.0,83336.0,0.07295245]
[1743909978763,0.20450431,83337.0,83336.0,0.07295245]
[1743909979063,0.25578431,83337.0,83336.0,0.07295245]
[1743909985076,0.37717472,83337.0,83336.0,0.07295245]
[1743909992879,0.35917471,83337.0,83336.0,0.07295245]
[1743909993471,0.37717472,83337.0,83336.0,0.07295245]
[1743909993771,0.61658464,83337.0,83336.0,0.07295245]
[1743909993973,0.61758464,83337.0,83336.0,0.07195245]
[1743909995079,0.61758464,83337.0,83336.0,0.07095245]
[1743909995280,0.61858464,83337.0,83336.0,0.07095245]
[1743909996781,0.25778464,83337.0,83336.0,0.07095245]
[1743909996980,0.61858464,83337.0,83336.0,0.07095245]
[1743909998584,0.25778464,83337.0,83336.0,0.07095245]
[1743909998783,0.61858464,83337.0,83336.0,0.07095245]
[1743910001588,0.25778464,83337.0,83336.0,0.07095245]
[1743910001783,0.61858464,83337.0,83336.0,0.07095245]
[1743910002987,0.25778464,83337.0,83336.0,0.07095245]
[1743910003173,0.61858464,83337.0,83336.0,0.07095245]
[1743910003373,0.20650464,83337.0,83336.0,0.07095245]
[1743910003578,0.61834464,83337.0,83336.0,0.07095245]
[1743910006492,0.55997647,83337.0,83336.0,0.07095245]
[1743910006689,0.59147647,83337.0,83336.0,0.00895245]
[1743910006993,0.0840292,83336.0,83335.0,8e-05]
[1743910007194,0.1479292,83336.0,83335.0,8e-05]
[1743910008187,0.1488492,83336.0,83335.0,0.06178]
[1743910008598,0.1538492,83336.0,83335.0,0.06178]
[1743910009691,0.1588492,83336.0,83335.0,0.07097052]
[1743910009886,0.5196492,83336.0,83335.0,0.07097052]
[1743910010795,0.5196492,83336.0,83335.0,0.03997052]
[1743910012388,0.5196492,83336.0,83335.0,0.00927052]
[1743910012989,0.53764921,83336.0,83335.0,0.00927052]
[1743910013189,0.5196492,83336.0,83335.0,0.00927052]
[1743910013390,0.53764921,83336.0,83335.0,0.00927052]
[1743910016394,0.17684921,83336.0,83335.0,0.00927052]
[1743910016593,0.53764921,83336.0,83335.0,0.00927052]
[1743910018296,0.59602317,83336.0,83335.0,0.00927052]
[1743910018496,0.23522317,83336.0,83335.0,0.00927052]
[1743910018697,0.59602317,83336.0,83335.0,0.00927052]
[1743910019998,0.59602317,83336.0,83335.0,0.00919052]
[1743910020197,0.0840302,83335.0,83334.0,8e-05]
[1743910020503,0.1485502,83335.0,83334.0,8e-05]
[1743910021403,0.0840332,83332.0,83331.0,0.0308]
[1743910021706,0.08499321,83332.0,83331.0,0.0308]
[1743910021905,0.11509321,83332.0,83331.0,0.0308]
[1743910022205,0.14599321,83332.0,83331.0,0.0308]
[1743910022805,0.14999321,83332.0,83331.0,0.0308]
[1743910022997,0.15399321,83332.0,83331.0,0.0308]
[1743910023605,0.15399321,83332.0,83331.0,0.03966889]
[1743910025608,0.18499321,83332.0,83331.0,0.03966889]
[1743910026800,0.24336717,83332.0,83331.0,0.03966889]